[Event "FIDE WSTC Open 50 2025"]
[Site "Prague"]
[Date "2025.02.19"]
[Round "3.26"]
[White "Svensson, Bengt"]
[Black "Folkova, Martina"]
[Result "1/2-1/2"]
[Annotator "RC"]
[ECO "C84"]
[WhiteElo "2297"]
[BlackElo "2031"]
[PlyCount "83"]
[EventDate "2025.02.17"]
[EventType "team-tourn"]
[EventCountry "CZE"]
[SourceTitle "playchess.com"]
[Source "ChessBase"]
[SourceQuality "1"]
[TimeControl "40/5400+30:1800+30"]

1. e4 {[%emt 0:00:03]} e5 {[%emt 0:00:09]} 2. Nf3 {[%emt 0:00:07]} Nc6 {[%emt 0:00:07]} 3. Bb5 {[%emt 0:00:14]} a6 {[%emt 0:00:09]} 4. Ba4 {[%emt 0:00:14]} Nf6 {[%emt 0:00:07]} 5. O-O {[%emt 0:00:22]} Be7 {[%emt 0:00:18]} 6. d3 {[%emt 0:01:01]} b5 {[%emt 0:00:23]} 7. Bb3 {[%emt 0:00:05]} d6 {[%emt 0:00:19]} 8. c3 {[%emt 0:00:50]} O-O {[%emt 0:01:56]} 9. Nbd2 {[%emt 0:00:45]} Na5 {[%emt 0:00:39]} 10. Bc2 {[%emt 0:00:05]} c5 {[%emt 0:00:15]} 11. Re1 {[%emt 0:01:00]} Nc6 {[%emt 0:02:20]} 12. Nf1 {[%emt 0:02:56]} Re8 {[%emt 0:02:08]} 13. Ng3 {[%emt 0:06:22]} Bf8 {[%emt 0:03:31]} 14. h3 {[%emt 0:04:47]} h6 {[%emt 0:02:26]} 15. d4 {[%emt 0:02:48]} exd4 {[%emt 0:13:02]} 16. cxd4 {[%emt 0:00:55]} cxd4 {[%emt 0:01:33]} 17. Nxd4 {[%emt 0:00:35]} Nxd4 {[%emt 0:01:22]} 18. Qxd4 {[%emt 0:00:05]} Qc7 {[%emt 0:06:37]} 19. Bb3 {[%emt 0:11:14]} d5 {[%emt 0:22:11]} 20. e5 {[%emt 0:12:09]} Bc5 {[%emt 0:01:14]} 21. Qf4 {[%emt 0:03:03]} Bd6 {[%emt 0:08:02]} 22. Qh4 {[%emt 0:17:05]} Bxe5 {[%emt 0:01:31]} 23. Bxh6 {[%emt 0:02:10]} gxh6 {[%emt 0:18:06]} 24. Qxh6 {[%emt 0:00:50]} Re6 {[%emt 0:07:59]} 25. Nf5 {[%emt 0:16:50]} Ne4 {[%emt 0:00:20]} 26. Qh4 {[%emt 0:01:58]} Bb7 {[%emt 0:03:01]} 27. Rxe4 {[%emt 0:03:25]} dxe4 {[%emt 0:00:34]} 28. Qg5+ Kf8 {[%emt 0:00:33]} 29. Bxe6 {[%emt 0:02:54]} fxe6 {[%emt 0:00:01]} 30. Qh6+ {[%emt 0:00:16]} Bg7 {[%emt 0:00:26]} 31. Qxe6 {[%emt 0:01:41]} Re8 {[%emt 0:00:35]} 32. Nxg7 {[%emt 0:00:37]} Qxg7 {[%emt 0:00:23]} 33. Qd6+ {[%emt 0:00:23]} Kg8 {[%emt 0:01:52]} 34. Kh1 {[%emt 0:02:40]} e3 {[%emt 0:00:04]} 35. f3 {[%emt 0:00:10]} e2 {[%emt 0:00:35]} 36. Re1 {[%emt 0:00:10]} Qe5 {[%emt 0:01:11]} 37. Qg6+ Kf8 {[%emt 0:00:20]} 38. Rxe2 {[%emt 0:00:51]} Qxe2 {[%emt 0:00:13]} 39. Qf6+ {[%emt 0:00:03]} Kg8 {[%emt 0:00:15]} 40. Qg6+ {[%emt 0:00:05]} Kh8 {[%emt 0:00:27]} 41. Qh6+ {[%emt 0:30:01]} Kg8 {[%emt 0:30:09]} 42. Qg6+ 1/2-1/2

[Event "FIDE WSTC Open 50 2025"]
[Site "Prague"]
[Date "2025.02.19"]
[Round "3.27"]
[White "Kubikova, Hana"]
[Black "Svenn, Gosta"]
[Result "0-1"]
[Annotator "RC"]
[ECO "A96"]
[WhiteElo "2070"]
[BlackElo "2290"]
[PlyCount "82"]
[EventDate "2025.02.17"]
[EventType "team-tourn"]
[EventCountry "CZE"]
[SourceTitle "playchess.com"]
[Source "ChessBase"]
[SourceQuality "1"]
[TimeControl "40/5400+30:1800+30"]

1. d4 {[%emt 0:00:05]} e6 {[%emt 0:00:06]} 2. Nf3 {[%emt 0:00:34]} f5 {[%emt 0:00:06]} 3. c4 {[%emt 0:00:44]} Nf6 {[%emt 0:00:07]} 4. g3 {[%emt 0:00:26]} Be7 {[%emt 0:00:08]} 5. Bg2 {[%emt 0:00:23]} O-O {[%emt 0:00:13]} 6. O-O {[%emt 0:00:44]} d6 {[%emt 0:00:04]} 7. Nc3 {[%emt 0:01:21]} Ne4 {[%emt 0:00:31]} 8. Qc2 {[%emt 0:02:41]} Nxc3 {[%emt 0:00:06]} 9. Qxc3 {[%emt 0:02:40]} a5 {[%emt 0:00:18]} 10. b3 {[%emt 0:04:21]} Bf6 {[%emt 0:01:01]} 11. Bb2 {[%emt 0:01:10]} Qe7 {[%emt 0:02:46]} 12. Qc2 {[%emt 0:02:02]} e5 {[%emt 0:01:35]} 13. dxe5 {[%emt 0:03:58]} dxe5 {[%emt 0:00:10]} 14. e4 {[%emt 0:02:19]} f4 {[%emt 0:14:04]} 15. gxf4 {[%emt 0:05:11]} exf4 {[%emt 0:00:07]} 16. e5 {[%emt 0:00:16]} Bh4 {[%emt 0:00:16]} 17. Qd2 {[%emt 0:04:18]} Ra6 {[%emt 0:06:40]} 18. Ba3 {[%emt 0:06:29]} Qxa3 {[%emt 0:08:29]} 19. Nxh4 {[%emt 0:00:04]} Qe7 {[%emt 0:00:24]} 20. Bd5+ {[%emt 0:05:12]} Kh8 {[%emt 0:00:26]} 21. Nf3 {[%emt 0:04:29]} Rh6 {[%emt 0:14:12]} 22. Rfe1 {[%emt 0:10:21]} Bg4 {[%emt 0:08:57]} 23. Qc3 {[%emt 0:04:45]} Nd7 {[%emt 0:19:18]} 24. e6 {[%emt 0:02:30]} Nc5 {[%emt 0:01:56]} 25. Re5 {[%emt 0:02:10]} Rg6 {[%emt 0:04:07]} 26. Kf1 {[%emt 0:00:48]} c6 {[%emt 0:00:33]} 27. Rd1 {[%emt 0:06:21]} cxd5 {[%emt 0:03:15]} 28. cxd5 {[%emt 0:00:19]} Qd6 {[%emt 0:07:43]} 29. e7 {[%emt 0:09:54]} Bh3+ {[%emt 0:01:50]} 30. Ke1 {[%emt 0:02:35]} Re8 {[%emt 0:00:11]} 31. Rd4 {[%emt 0:05:52]} Rxe7 {[%emt 0:02:52]} 32. Rxf4 {[%emt 0:00:23]} h6 {[%emt 0:00:27]} 33. Kd2 {[%emt 0:07:13]} Rxe5 {[%emt 0:00:38]} 34. Nxe5 {[%emt 0:00:42]} Qxd5+ {[%emt 0:01:11]} 35. Kc2 {[%emt 0:02:12]} Rf6 {[%emt 0:01:15]} 36. Rxf6 {[%emt 0:01:34]} gxf6 {[%emt 0:00:26]} 37. Qxh3 {[%emt 0:00:58]} Qxe5 {[%emt 0:00:34]} 38. Qxh6+ {[%emt 0:00:23]} Kg8 {[%emt 0:00:07]} 39. Qg6+ {[%emt 0:00:08]} Kf8 {[%emt 0:00:10]} 40. Qh6+ {[%emt 0:00:50]} Ke7 {[%emt 0:00:47]} 41. f4 {[%emt 0:07:17]} Qe4+ {[%emt 0:07:45]} 0-1

[Event "FIDE WSTC Open 50 2025"]
[Site "Prague"]
[Date "2025.02.19"]
[Round "3.28"]
[White "Wengholm, Anders"]
[Black "Svobodova, Michaela"]
[Result "1-0"]
[Annotator "ChessBase"]
[ECO "A06"]
[WhiteElo "2132"]
[BlackElo "2048"]
[PlyCount "85"]
[EventDate "2025.02.17"]
[EventType "team-tourn"]
[EventCountry "CZE"]
[SourceTitle "playchess.com"]
[Source "ChessBase"]
[SourceQuality "1"]
[TimeControl "40/5400+30:1800+30"]

1. Nf3 {[%emt 0:00:10]} d5 {[%emt 0:00:17]} 2. g3 {[%emt 0:02:17]} Nf6 {[%emt 0:00:57]} 3. Bg2 {[%emt 0:01:57]} Bg4 {[%emt 0:00:39]} 4. O-O {[%emt 0:02:29]} Nbd7 {[%emt 0:02:07]} 5. h3 {[%emt 0:02:05]} Bh5 {[%emt 0:01:29]} 6. d3 {[%emt 0:10:35]} e5 7. Qe1 Be7 {[%emt 0:11:35]} 8. e4 {[%emt 0:01:27]} dxe4 {[%emt 0:02:25]} 9. dxe4 {[%emt 0:00:06]} O-O {[%emt 0:02:05]} 10. a4 {[%emt 0:03:18]} a5 {[%emt 0:09:10]} 11. Bd2 {[%emt 0:00:58]} c6 {[%emt 0:03:04]} 12. Bc3 {[%emt 0:03:15]} Qc7 {[%emt 0:05:02]} 13. Nh4 {[%emt 0:02:15]} Rfe8 {[%emt 0:04:09]} 14. Na3 {[%emt 0:03:55]} b6 {[%emt 0:07:54]} 15. Nc4 {[%emt 0:03:20]} Rad8 {[%emt 0:03:20]} 16. Kh1 {[%emt 0:01:17]} Bc5 {[%emt 0:03:20]} 17. f3 {[%emt 0:03:55]} Bg6 {[%emt 0:07:12]} 18. Rd1 {[%emt 0:02:22]} Kh8 {[%emt 0:05:32]} 19. Rd3 {[%emt 0:10:23]} Nh5 {[%emt 0:01:18]} 20. Kh2 {[%emt 0:00:35]} f6 {[%emt 0:00:57]} 21. Nxg6+ {[%emt 0:00:38]} hxg6 {[%emt 0:00:10]} 22. Qd2 {[%emt 0:11:42]} Nf8 {[%emt 0:01:39]} 23. Rd1 {[%emt 0:00:25]} Rxd3 {[%emt 0:04:09]} 24. Qxd3 {[%emt 0:06:56]} Bf2 {[%emt 0:01:07]} 25. Be1 {[%emt 0:01:22]} Bxe1 {[%emt 0:00:54]} 26. Rxe1 {[%emt 0:00:06]} Ne6 {[%emt 0:06:20]} 27. Qe2 {[%emt 0:08:56]} b5 {[%emt 0:03:57]} 28. axb5 cxb5 {[%emt 0:00:23]} 29. Ne3 {[%emt 0:07:01]} Nd4 {[%emt 0:01:28]} 30. Qf2 {[%emt 0:00:11]} b4 {[%emt 0:04:12]} 31. c3 {[%emt 0:00:20]} bxc3 {[%emt 0:01:14]} 32. Nd5 {[%emt 0:00:05]} Qc4 {[%emt 0:01:45]} 33. bxc3 {[%emt 0:00:09]} Nb5 {[%emt 0:01:08]} 34. Bf1 {[%emt 0:00:30]} Qb3 {[%emt 0:01:52]} 35. Bxb5 {[%emt 0:00:12]} Qxb5 {[%emt 0:00:04]} 36. Nc7 {[%emt 0:00:03]} Qd7 {[%emt 0:00:20]} 37. Nxe8 {[%emt 0:00:07]} Qxe8 {[%emt 0:00:02]} 38. Qe2 {[%emt 0:06:07]} Qc6 {[%emt 0:01:37]} 39. Qd3 {[%emt 0:01:01]} a4 {[%emt 0:00:54]} 40. Rb1 {[%emt 0:01:00]} Qc5 {[%emt 0:00:51]} 41. Kg2 {[%emt 0:31:24]} a3 {[%emt 0:31:27]} 42. Rb8+ {[%emt 0:01:30]} Kh7 {[%emt 0:00:03]} 43. Qd5 {[%emt 0:00:07]} 1-0

[Event "FIDE WSTC Open 50 2025"]
[Site "Prague"]
[Date "2025.02.19"]
[Round "3.29"]
[White "Polak, Tomas"]
[Black "Van der Werf, Mark"]
[Result "1-0"]
[Annotator "TA"]
[ECO "E11"]
[WhiteElo "2463"]
[BlackElo "2416"]
[PlyCount "55"]
[EventDate "2025.02.17"]
[EventType "team-tourn"]
[EventCountry "CZE"]
[SourceTitle "playchess.com"]
[Source "ChessBase"]
[SourceQuality "1"]
[TimeControl "40/5400+30:1800+30"]

{[%evp 16,55,31,30,33,0,12,6,15,7,21,14,16,11,18,10,10,0,31,29,42,16,23,0,20,28,73,72,86,76,77,68,100,105,100,50,34,34,708,703,694,691]} 1. d4 {[%emt 0:00:07]} Nf6 {[%emt 0:00:06]} 2. c4 {[%emt 0:00:09]} e6 {[%emt 0:00:08]} 3. Nf3 {[%emt 0:00:13]} Bb4+ {[%emt 0:00:06]} 4. Bd2 {[%emt 0:00:21]} Bxd2+ {[%emt 0:00:08]} 5. Qxd2 {[%emt 0:00:28]} O-O {[%emt 0:00:09]} 6. g3 {[%emt 0:01:53]} d5 {[%emt 0:00:07]} 7. Bg2 {[%emt 0:00:26]} c6 {[%emt 0:00:08] is more profitable than 7...Nbd7 at the moment.} 8. O-O {[%emt 0:00:50]} Nbd7 {[%emt 0:00:10]} 9. Rc1 {[%emt 0:01:07]} b6 {[%emt 0:01:21] E11: Bogo-Indian.} 10. b3 {[%emt 0:11:36]} Qe7 {[%emt 0:18:53]} 11. Nc3 $146 {[%emt 0:13:05]} (11. cxd5 cxd5 12. Nc3 Ba6 13. Rc2 Rac8 14. Rac1 Rfd8 15. e3 Nf8 16. Ne5 Ng6 17. Nxg6 hxg6 18. Bf1 Bxf1 {½-½ Schwellnus,G-Hellmueller,F Rangliste 1900-2200 23036 2021}) 11... Ba6 {[%emt 0:04:58] The position is equal.} 12. Ne5 {[%emt 0:06:42]} Nxe5 {[%emt 0:02:38]} 13. dxe5 {[%emt 0:00:49]} Nd7 {[%emt 0:00:52]} 14. f4 {[%emt 0:00:36][%cal Rc4d5]} Rad8 {[%emt 0:07:28]} 15. cxd5 {[%emt 0:07:02]} cxd5 {[%emt 0:01:02]} 16. Qd4 {[%emt 0:01:25]} f6 {[%emt 0:02:28]} 17. exf6 {[%emt 0:03:46]} Nxf6 {[%emt 0:00:16]} 18. Bf3 {[%emt 0:03:32]} Rc8 {[%emt 0:12:23]} 19. Qa4 {[%emt 0:06:28]} Qc5+ {[%emt 0:04:45]} 20. Kg2 {[%emt 0:00:27]} Qe3 {[%emt 0:00:45]} 21. Nd1 {[%emt 0:08:48]} Qd2 {[%emt 0:10:50]} 22. Rxc8 {[%emt 0:01:18]} Bxc8 {[%emt 0:00:05]} 23. Nf2 $1 $36 {[%emt 0:02:52][%mdl 2048] White has good play.} (23. Qxa7 e5 24. Qxb6 (24. fxe5 $2 Bg4 $19) 24... e4 $19 (24... exf4 25. Nf2 $16)) 23... a5 {[%emt 0:03:35] [#]} 24. Qc6 $1 {[%emt 0:04:04] Inhibits Qc3.} Qe3 {[%emt 0:06:49] [#]} 25. Rd1 {[%emt 0:07:59]} (25. Ng4 $1 $16 {[%cal Rg4e3]} Nxg4 26. Bxg4) 25... Bd7 $1 $14 {[%emt 0:05:38]} 26. Qd6 {[%emt 0:02:36]} Rc8 $2 {[%emt 0:05:26][%mdl 8192]} (26... Bb5 $14) 27. Ng4 $18 {[%emt 0:01:46]} Nxg4 {[%emt 0:03:16]} 28. Bxg4 {[%emt 0:03:49] Weighted Error Value: White=0.08 (flawless) /Black=0.53  Loses game:     	---       	Black=1      Mistake:       	White=1     	---        Inaccurate:     	White=1     	Black=3      OK:         	White=7     	Black=5      Best:        	White=1     	---        Strong:       	White=2     	Black=1} (28. Qxd7 $2 {loses.} Qf2+ 29. Kh3 Qxh2+ 30. Kxg4 h5+ 31. Kg5 Qxg3+ 32. Kxh5 Qh3+ 33. Kg5 Rf8 $19) 1-0

[Event "FIDE WSTC Open 50 2025"]
[Site "Prague"]
[Date "2025.02.19"]
[Round "3.30"]
[White "Van Haastert, Edwin"]
[Black "Obsivac, Josef"]
[Result "1-0"]
[Annotator "RC"]
[ECO "B32"]
[WhiteElo "2408"]
[BlackElo "2262"]
[PlyCount "123"]
[EventDate "2025.02.17"]
[EventType "team-tourn"]
[EventCountry "CZE"]
[SourceTitle "playchess.com"]
[Source "ChessBase"]
[SourceQuality "1"]
[TimeControl "40/5400+30:1800+30"]

1. e4 {[%emt 0:00:03]} c5 {[%emt 0:00:06]} 2. Nf3 {[%emt 0:00:05]} Nc6 {[%emt 0:00:09]} 3. d4 {[%emt 0:00:05]} cxd4 {[%emt 0:00:07]} 4. Nxd4 {[%emt 0:00:04]} e5 {[%emt 0:00:18]} 5. Nb5 {[%emt 0:00:06]} d6 {[%emt 0:00:12]} 6. N1c3 {[%emt 0:00:05]} a6 {[%emt 0:00:26]} 7. Na3 {[%emt 0:00:05]} Be7 {[%emt 0:00:18]} 8. Nd5 {[%emt 0:01:06]} Nf6 {[%emt 0:01:06]} 9. Nxf6+ {[%emt 0:00:07]} Bxf6 {[%emt 0:00:06]} 10. Bc4 {[%emt 0:00:07]} O-O {[%emt 0:01:17]} 11. O-O {[%emt 0:00:06]} Rb8 {[%emt 0:02:45]} 12. c3 {[%emt 0:02:09]} b5 {[%emt 0:04:08]} 13. Bb3 {[%emt 0:01:23]} a5 {[%emt 0:05:46]} 14. Qd3 {[%emt 0:26:44]} b4 {[%emt 0:25:48]} 15. Nc2 {[%emt 0:04:37]} Be7 {[%emt 0:08:07]} 16. Ne3 {[%emt 0:02:40]} g6 {[%emt 0:07:48]} 17. Rd1 {[%emt 0:03:17]} Kg7 {[%emt 0:03:45]} 18. Nd5 {[%emt 0:03:02]} Bg5 {[%emt 0:20:30]} 19. Ne3 {[%emt 0:32:50]} Be7 {[%emt 0:01:50]} 20. Qd2 {[%emt 0:01:22]} Be6 {[%emt 0:03:46]} 21. Nd5 {[%emt 0:00:48]} Bxd5 {[%emt 0:02:07]} 22. Bxd5 {[%emt 0:00:21]} bxc3 {[%emt 0:00:39]} 23. bxc3 {[%emt 0:00:45]} Qc7 {[%emt 0:01:20]} 24. Qh6+ {[%emt 0:00:15]} Kh8 {[%emt 0:01:11]} 25. Rd3 {[%emt 0:00:22]} Rg8 {[%emt 0:01:53]} 26. Bg5 {[%emt 0:10:39]} Bxg5 {[%emt 0:00:46]} 27. Qxg5 {[%emt 0:00:01]} Qe7 {[%emt 0:01:27]} 28. Qxe7 {[%emt 0:01:06]} Nxe7 29. Bxf7 {[%emt 0:00:10]} Rgf8 {[%emt 0:00:11]} 30. Bb3 {[%emt 0:00:09]} Rf6 {[%emt 0:00:47]} 31. Rad1 {[%emt 0:00:22]} Rb6 {[%emt 0:00:15]} 32. f3 {[%emt 0:00:47]} g5 {[%emt 0:00:58]} 33. Rb1 {[%emt 0:01:29]} Rf8 {[%emt 0:01:54]} 34. Bc2 {[%emt 0:00:47]} Rxb1+ {[%emt 0:00:50]} 35. Bxb1 {[%emt 0:00:04]} Rb8 {[%emt 0:00:06]} 36. Bc2 {[%emt 0:00:04]} Rb6 {[%emt 0:00:13]} 37. Bb3 {[%emt 0:00:47]} Kg7 {[%emt 0:00:18]} 38. Kf2 {[%emt 0:00:19]} Kf6 {[%emt 0:00:28]} 39. Ke3 {[%emt 0:00:23]} Rc6 {[%emt 0:02:13]} 40. Kd2 {[%emt 0:00:26]} Rb6 {[%emt 0:01:21]} 41. Kc2 {[%emt 0:31:06]} h5 {[%emt 0:09:53]} 42. g3 {[%emt 0:00:00]} Kg7 {[%emt 0:02:34]} 43. Be6 {[%emt 0:00:00]} Kf6 {[%emt 0:01:41]} 44. Bd7 {[%emt 0:00:00]} Kf7 {[%emt 0:00:49]} 45. c4 {[%emt 0:00:00]} Nc6 {[%emt 0:03:41]} 46. Bxc6 {[%emt 0:00:00]} Rxc6 {[%emt 0:00:02]} 47. Kc3 {[%emt 0:00:00]} Rb6 {[%emt 0:01:14]} 48. Rd5 {[%emt 0:00:00]} Rb1 {[%emt 0:00:23]} 49. Rxd6 {[%emt 0:00:00]} Rf1 {[%emt 0:00:21]} 50. c5 {[%emt 0:00:00]} Rxf3+ {[%emt 0:00:17]} 51. Rd3 {[%emt 0:00:00]} Rf1 {[%emt 0:03:43]} 52. Kc4 {[%emt 0:00:00]} Ke6 {[%emt 0:00:55]} 53. Rd6+ {[%emt 0:00:00]} Ke7 {[%emt 0:00:02]} 54. Rh6 {[%emt 0:00:00]} Rd1 {[%emt 0:01:44]} 55. Rxh5 {[%emt 0:00:00]} Rd4+ {[%emt 0:00:07]} 56. Kb5 {[%emt 0:00:00]} Rxe4 {[%emt 0:03:15]} 57. Rxg5 {[%emt 0:00:00]} Kf6 {[%emt 0:01:32]} 58. h4 {[%emt 0:00:00]} Re2 59. a4 {[%emt 0:00:00]} e4 {[%emt 0:01:07]} 60. Rg8 {[%emt 0:00:00]} Kf7 {[%emt 0:01:10]} 61. Rg4 {[%emt 0:00:00]} Ke6 {[%emt 0:00:14]} 62. Kc4 {[%emt 0:00:00]} 1-0

[Event "FIDE WSTC Open 50 2025"]
[Site "Prague"]
[Date "2025.02.19"]
[Round "3.31"]
[White "Holemar, David"]
[Black "Roobol, Martin"]
[Result "1/2-1/2"]
[Annotator "RC"]
[ECO "A48"]
[WhiteElo "2150"]
[BlackElo "2242"]
[PlyCount "23"]
[EventDate "2025.02.17"]
[EventType "team-tourn"]
[EventCountry "CZE"]
[SourceTitle "playchess.com"]
[Source "ChessBase"]
[SourceQuality "1"]
[TimeControl "40/5400+30:1800+30"]

1. d4 {[%emt 0:00:02]} Nf6 {[%emt 0:00:06]} 2. Nf3 {[%emt 0:01:18]} g6 {[%emt 0:00:08]} 3. Bg5 {[%emt 0:01:04]} Bg7 {[%emt 0:00:21]} 4. Nbd2 {[%emt 0:00:54]} d5 {[%emt 0:03:33]} 5. c3 {[%emt 0:03:52]} O-O {[%emt 0:00:26]} 6. e3 {[%emt 0:00:42]} b6 {[%emt 0:02:20]} 7. Bd3 {[%emt 0:03:05]} Bb7 {[%emt 0:01:05]} 8. O-O {[%emt 0:00:25]} c5 {[%emt 0:01:17]} 9. Qe2 {[%emt 0:01:52]} Ne4 {[%emt 0:08:08]} 10. Bh4 {[%emt 0:00:31]} Nd7 {[%emt 0:00:21]} 11. Ba6 {[%emt 0:00:50]} Bxa6 {[%emt 0:07:15]} 12. Qxa6 {[%emt 0:00:09]} 1/2-1/2

[Event "FIDE WSTC Open 50 2025"]
[Site "Prague"]
[Date "2025.02.19"]
[Round "3.32"]
[White "Kindt, Manfred"]
[Black "Skacelik, Petr"]
[Result "0-1"]
[Annotator "ChessBase"]
[ECO "B31"]
[WhiteElo "2049"]
[BlackElo "2132"]
[PlyCount "102"]
[EventDate "2025.02.17"]
[EventType "team-tourn"]
[EventCountry "CZE"]
[SourceTitle "playchess.com"]
[Source "ChessBase"]
[SourceQuality "1"]
[TimeControl "40/5400+30:1800+30"]

1. e4 {[%emt 0:00:03]} c5 {[%emt 0:00:05]} 2. Nf3 {[%emt 0:00:11]} Nc6 {[%emt 0:00:30]} 3. Bb5 {[%emt 0:00:20]} g6 {[%emt 0:00:10]} 4. O-O {[%emt 0:00:22]} Bg7 {[%emt 0:00:09]} 5. c3 {[%emt 0:00:33]} Nf6 {[%emt 0:01:25]} 6. Re1 {[%emt 0:00:17]} O-O {[%emt 0:00:51]} 7. d4 {[%emt 0:00:26]} cxd4 {[%emt 0:04:50]} 8. cxd4 {[%emt 0:00:12]} d5 {[%emt 0:00:32]} 9. e5 {[%emt 0:00:18]} Nd7 {[%emt 0:00:11]} 10. Bxc6 {[%emt 0:09:22]} bxc6 {[%emt 0:00:01]} 11. e6 {[%emt 0:00:29]} fxe6 {[%emt 0:03:21]} 12. Ng5 {[%emt 0:12:13]} Nf6 {[%emt 0:00:38]} 13. Nc3 {[%emt 0:04:53]} Qd6 {[%emt 0:08:56]} 14. Na4 {[%emt 0:15:04]} h6 {[%emt 0:01:45]} 15. Nf3 {[%emt 0:04:04]} Nd7 {[%emt 0:00:12]} 16. Qe2 {[%emt 0:10:50]} Rxf3 {[%emt 0:05:40]} 17. gxf3 {[%emt 0:06:20]} e5 {[%emt 0:00:18]} 18. dxe5 {[%emt 0:05:35]} Bxe5 {[%emt 0:00:30]} 19. f4 {[%emt 0:04:30]} Bf6 {[%emt 0:01:02]} 20. Bd2 {[%emt 0:05:41]} Nb6 {[%emt 0:01:25]} 21. Nxb6 {[%emt 0:04:10]} axb6 {[%emt 0:00:01]} 22. Qd3 {[%emt 0:02:20]} Kg7 {[%emt 0:01:56]} 23. Qb3 {[%emt 0:03:01]} c5 {[%emt 0:02:42]} 24. Rad1 {[%emt 0:02:32]} Bd7 {[%emt 0:02:13]} 25. Bc1 {[%emt 0:01:41]} d4 {[%emt 0:01:20]} 26. Rd3 {[%emt 0:03:43]} b5 {[%emt 0:01:36]} 27. Rg3 {[%emt 0:00:26]} c4 {[%emt 0:00:53]} 28. Qf3 {[%emt 0:00:29]} Rg8 {[%emt 0:15:09]} 29. f5 {[%emt 0:00:55]} g5 {[%emt 0:04:24]} 30. h4 {[%emt 0:01:50]} Kf8 {[%emt 0:03:01]} 31. Qh5 {[%emt 0:01:49]} Rh8 {[%emt 0:00:23]} 32. Qf3 {[%emt 0:01:00]} Qc6 {[%emt 0:04:24]} 33. Qxc6 {[%emt 0:00:36]} Bxc6 {[%emt 0:00:02]} 34. hxg5 {[%emt 0:00:39]} hxg5 {[%emt 0:00:09]} 35. f3 {[%emt 0:00:07]} d3 {[%emt 0:06:26]} 36. a3 {[%emt 0:00:35]} Kf7 {[%emt 0:01:04]} 37. Kg2 {[%emt 0:00:25]} Rd8 {[%emt 0:00:40]} 38. Rd1 {[%emt 0:00:23]} Bd7 {[%emt 0:00:41]} 39. Rh3 {[%emt 0:00:59]} Bxf5 {[%emt 0:00:10]} 40. Rh5 {[%emt 0:00:31]} Kg6 {[%emt 0:00:47]} 41. Rhh1 {[%emt 0:02:14]} Bd7 {[%emt 0:08:18]} 42. Kf2 {[%emt 0:02:22]} Bc6 {[%emt 0:02:31]} 43. Rh3 {[%emt 0:01:27]} Kf5 {[%emt 0:01:04]} 44. Rh5 {[%emt 0:02:51]} Be8 {[%emt 0:02:00]} 45. Rh2 {[%emt 0:02:02]} Bd4+ {[%emt 0:01:01]} 46. Kf1 {[%emt 0:04:21]} Bc6 {[%emt 0:02:02]} 47. Rh5 {[%emt 0:03:48]} Bf6 {[%emt 0:03:03]} 48. Kf2 {[%emt 0:00:22]} Rd6 {[%emt 0:00:45]} 49. f4 {[%emt 0:02:52]} Re6 {[%emt 0:02:22]} 50. Re1 {[%emt 0:00:43]} Bd4+ {[%emt 0:01:32]} 51. Re3 {[%emt 0:00:46]} Kxf4 {[%emt 0:00:57]} 0-1

[Event "FIDE WSTC Open 50 2025"]
[Site "Prague"]
[Date "2025.02.19"]
[Round "3.33"]
[White "Haba, Petr"]
[Black "Burrows, Martin P"]
[Result "1-0"]
[Annotator "TA"]
[ECO "A05"]
[WhiteElo "2442"]
[BlackElo "2043"]
[PlyCount "67"]
[EventDate "2025.02.17"]
[EventType "team-tourn"]
[EventCountry "CZE"]
[SourceTitle "playchess.com"]
[Source "ChessBase"]
[SourceQuality "1"]
[TimeControl "40/5400+30:1800+30"]

{[%evp 10,67,26,9,16,20,10,15,25,8,12,3,12,13,74,69,59,45,50,56,46,23,55,43,48,44,35,0,0,0,2,5,0,0,0,9,43,39,59,53,78,61,118,107,108,108,167,141,370,316,322,310,736,727,736,729,697,732,682,684]} 1. Nf3 {[%emt 0:00:14]} Nf6 {[%emt 0:00:16]} 2. c4 {[%emt 0:00:19]} e6 {[%emt 0:00:21]} 3. g3 {[%emt 0:00:16]} d5 {[%emt 0:00:11]} 4. Bg2 {[%emt 0:00:13]} d4 {[%emt 0:01:29]} 5. O-O {[%emt 0:01:13]} Nc6 {[%emt 0:00:22]} 6. d3 {[%emt 0:06:46]} Bc5 {[%emt 0:00:23] A13: English Opening: 1...e6.} 7. e3 {[%emt 0:04:11]} O-O {[%emt 0:00:56]} 8. exd4 {[%emt 0:01:00]} Nxd4 {[%emt 0:00:12][%cal Oe6e5] The position is equal.} 9. Nc3 {[%emt 0:02:46]} Re8 {[%emt 0:01:43]} 10. Nxd4 $146 {[%emt 0:08:56]} (10. Re1 h6 11. Ne5 a5 12. Rb1 c6 13. Bf4 Bf8 14. a3 Nd7 15. Ne4 f6 16. Nxd7 Bxd7 {0-1 Melde,B (2135)-Yelisieiev,Y (2418) GER-ch U25-A 2023 (3)}) 10... Bxd4 {[%emt 0:00:39]} 11. Ne2 {[%emt 0:00:13]} c5 {[%emt 0:14:27]} (11... Bb6 $11 {remains equal.}) 12. Nxd4 $16 {[%emt 0:05:24]} cxd4 {[%emt 0:00:21]} 13. Bg5 {[%emt 0:03:53]} h6 {[%emt 0:01:30]} 14. Bxf6 {[%emt 0:00:05]} Qxf6 {[%emt 0:00:10]} 15. c5 {[%emt 0:04:18]} e5 {[%emt 0:15:34]} 16. Rc1 {[%emt 0:03:39] Threatens to win with c6.} Rb8 {[%emt 0:01:48]} 17. Qa4 {[%emt 0:07:50]} Bf5 {[%emt 0:01:40]} 18. Rfd1 {[%emt 0:00:19][%cal Og2b7,Bf1d1,Bd1e1,Be1e4][%mdl 32]} Bg4 $1 {[%emt 0:16:09]} 19. Re1 {[%emt 0:10:42]} Bf3 {[%emt 0:01:24]} 20. b4 {[%emt 0:00:20]} a6 {[%emt 0:02:17]} 21. Rc4 {[%emt 0:06:20]} Bxg2 {[%emt 0:08:38]} 22. Kxg2 {[%emt 0:00:02][%cal Oc4d4]} Re6 {[%emt 0:00:18]} 23. Qd7 {[%emt 0:01:15]} Qg6 {[%emt 0:04:43]} 24. Re4 {[%emt 0:01:26]} Qg5 {[%emt 0:14:25] [#]} 25. Rc2 {[%emt 0:02:57][%cal Bc4c2,Bc2e2,Be2e5,Be5f5][%mdl 32] Dodges Qd2} Re7 {[%emt 0:01:20]} (25... Qd8 $14 26. Qxd8+ Rxd8) 26. Qd5 {[%emt 0:01:42] White has more active pieces.} Rbe8 {[%emt 0:00:58]} 27. Rce2 {[%emt 0:02:26]} Qf6 {[%emt 0:07:42] [#]} (27... Re6 $16) 28. f4 $1 $18 {[%emt 0:04:28]} Kh7 $2 {[%emt 0:03:08] This costs Black the game.} (28... Qc6 $16 29. Qxc6 (29. Rxe5 $2 {too greedy.} Qxd5+ 30. Rxd5 Rxe2+ $19) 29... bxc6 30. Rxe5 (30. fxe5 a5 $16) 30... Rxe5 31. Rxe5 (31. fxe5 f5 $16) 31... Rb8) 29. Rxe5 {[%emt 0:03:00]} (29. fxe5 Qf5 30. Qxd4 Kg8 $16) 29... Rxe5 {[%emt 0:00:17]} 30. Rxe5 {[%emt 0:00:04]} Rd8 {[%emt 0:00:27]} (30... Rxe5 31. Qxe5 Qg6) 31. Qxb7 {[%emt 0:00:54] White is clearly winning.} g5 {[%emt 0:00:07]} 32. Qe4+ {[%emt 0:02:37]} Kg7 {[%emt 0:00:02]} 33. fxg5 {[%emt 0:00:18]} hxg5 {[%emt 0:00:03]} 34. Rf5 {[%emt 0:00:08] Weighted Error Value: White=0.03 (flawless) /Black=0.44  Loses game:     	---       	Black=1      Mistake:       	---       	Black=4      Inaccurate:     	White=1     	Black=2      OK:         	White=12    	Black=7      Best:        	White=2     	---        Strong:       	White=1     	Black=1} 1-0